bitfinex/quotes_SOLUSD_20241105
["timestamp","ask_amount","ask_price","bid_price","bid_amount"]
[1730777530789,26.90014261,158.89,158.88,0.310208]
[1730777531375,26.64916261,158.89,158.88,0.310208]
[1730777531578,26.42367261,158.89,158.88,0.310208]
[1730777532786,26.52367261,158.89,158.88,0.310208]
[1730777532978,26.42367261,158.89,158.88,0.310208]
[1730777533172,0.13007261,158.89,158.88,0.310208]
[1730777533403,0.13007261,158.89,158.88,12.47688799]
[1730777534800,0.13007261,158.89,158.88,0.310208]
[1730777536705,18.5903526,158.89,158.88,0.310208]
[1730777536873,45.7221226,158.89,158.88,0.310208]
[1730777537074,33.55544261,158.89,158.88,0.310208]
[1730777537615,0.13007261,158.89,158.88,12.47688799]
[1730777537904,0.13007261,158.89,158.88,0.310208]
[1730777540913,26.52367261,158.89,158.88,0.310208]
[1730777546019,38.6903526,158.89,158.88,0.310208]
[1730777546903,132.9437066,158.89,158.88,0.310208]
[1730777547120,145.1103866,158.89,158.88,0.310208]
[1730777555112,75.0103866,158.89,158.88,0.310208]
[1730777555312,38.69035261,158.89,158.88,0.310208]
[1730777557508,38.59035261,158.89,158.88,0.310208]
[1730777561513,38.69035261,158.89,158.88,0.310208]
[1730777562007,38.59035261,158.89,158.88,0.310208]
[1730777562835,18.59035261,158.89,158.88,0.310208]
[1730777569420,12.29675261,158.89,158.88,0.310208]
[1730777569747,0.13007261,158.89,158.88,12.47688799]
[1730777576941,0.13007261,158.89,158.88,18.77088799]
[1730777577322,0.13007261,158.89,158.88,12.47688799]
[1730777577538,0.13007261,158.89,158.88,18.77088799]
[1730777580339,0.13007261,158.89,158.88,0.310208]
[1730777580648,0.13007261,158.89,158.88,12.47688799]
[1730777582618,0.13007261,158.89,158.88,18.77088799]
[1730777582949,0.13007261,158.89,158.88,34.48388799]
[1730777583839,0.04,158.91,158.89,24.153354]
[1730777584022,0.13007261,158.91,158.9,12.16667999]
[1730777584547,0.13007261,158.91,158.9,18.45987999]
[1730777595669,0.13007261,158.93,158.9,18.45987999]
[1730777595974,0.04,158.96,158.92,12.16667999]
[1730777596160,0.04,158.93,158.91,23.776884]
[1730777596466,0.04,158.92,158.91,23.776884]
[1730777596675,0.04,158.96,158.91,24.153354]
[1730777596876,0.04,158.94,158.91,24.153354]
[1730777597870,0.04,158.94,158.92,22.0235]
[1730777598567,0.04,158.96,158.94,15.4592]
[1730777598769,0.04,158.99,158.96,23.776884]
[1730777598970,6.56703207,159.04,158.95,60.83339995]
[1730777598971,0.04,159.02,159.0,15.4592]
[1730777599157,6.3312,159.04,159.0,15.4592]
[1730777599367,21.4255,159.1,159.01,23.776884]
[1730777599550,28.38686586,159.09,159.0,15.4592]
[1730777599845,28.38686586,159.09,159.01,22.0111]
[1730777600043,28.38686586,159.09,159.05,12.16667999]
[1730777600973,28.38686586,159.09,159.06,12.16667999]
[1730777602570,28.48686586,159.09,159.07,12.16667999]
[1730777603066,22.10106586,159.09,159.07,12.16667999]
[1730777603276,11.050533,159.09,159.08,12.16667999]
[1730777603484,6.2853,159.1,159.08,12.16667999]
[1730777603681,17.335833,159.1,159.08,12.16667999]
[1730777604062,17.335833,159.1,159.09,12.16667999]
[1730777604286,11.050533,159.1,159.09,12.16667999]
[1730777604850,6.2841,159.13,159.09,12.16667999]
[1730777605055,28.987208,159.13,159.11,12.16667999]
[1730777605270,29.087208,159.13,159.1,12.16667999]
[1730777605984,22.703108,159.13,159.1,12.16667999]
[1730777606161,6.56650788,159.14,159.12,12.16667999]
[1730777606363,6.56650788,159.14,159.07,32.1567]
[1730777606364,6.56650788,159.14,159.13,12.16667999]
[1730777606562,12.6078,159.15,159.13,12.16667999]
[1730777606774,12.6078,159.15,159.14,12.16667999]
[1730777607590,6.3245,159.15,159.14,12.16667999]
[1730777607956,0.310208,159.16,159.14,12.16667999]
[1730777608155,0.310208,159.16,159.15,12.16667999]
[1730777611795,0.310208,159.16,159.12,12.16667999]
[1730777611796,0.1,159.14,159.12,12.16667999]
[1730777612289,6.3841,159.14,159.12,12.16667999]
[1730777615291,6.2841,159.14,159.12,12.16667999]
[1730777615788,6.2841,159.14,159.13,12.16667999]
[1730777616708,6.3841,159.14,159.11,12.16667999]
[1730777617080,6.3841,159.14,159.12,12.16667999]
[1730777617282,6.2841,159.14,159.12,12.16667999]
[1730777620892,6.3841,159.14,159.12,12.16667999]
[1730777621612,6.4841,159.14,159.11,12.16667999]
[1730777623106,6.4841,159.14,159.1,12.16667999]
[1730777623107,0.1,159.13,159.1,12.16667999]
[1730777623798,6.2845,159.12,159.1,12.16667999]
[1730777624799,6.2845,159.12,159.09,12.16667999]
[1730777630111,6.2845,159.12,159.1,12.16667999]
[1730777632206,6.2845,159.12,159.11,12.16667999]
[1730777639702,6.2837,159.14,159.11,12.16667999]
[1730777639900,0.310208,159.16,159.13,12.16667999]
[1730777640114,0.310208,159.16,159.12,48.66671996]
[1730777640115,0.310208,159.16,159.15,12.16667999]
[1730777641100,0.310208,159.16,159.13,12.16667999]
[1730777641101,6.693108,159.16,159.13,12.16667999]
[1730777641616,6.793108,159.16,159.13,12.16667999]
[1730777642335,0.2,159.15,159.12,12.16667999]
[1730777642704,0.1,159.14,159.13,12.16667999]
[1730777643807,6.2837,159.14,159.13,12.16667999]
[1730777644015,6.2834,159.15,159.13,12.16667999]
[1730777644206,6.2834,159.15,159.14,12.16667999]
[1730777647619,6.593208,159.16,159.14,12.16667999]
[1730777647835,6.593208,159.16,159.15,12.16667999]
[1730777648331,6.693208,159.16,159.15,12.16667999]
[1730777650632,6.593208,159.16,159.15,12.16667999]
[1730777651523,6.693208,159.16,159.14,12.16667999]
[1730777652335,6.693208,159.16,159.13,12.16667999]
[1730777654222,6.593208,159.16,159.13,12.16667999]
[1730777654536,6.693208,159.16,159.13,12.16667999]
[1730777654733,6.693208,159.16,159.15,12.16667999]
[1730777654939,6.593208,159.16,159.15,12.16667999]
[1730777656921,6.693208,159.16,159.14,12.16667999]
[1730777657241,6.693208,159.16,159.13,12.16667999]
[1730777659521,6.693208,159.16,159.1,12.16667999]
[1730777659522,0.1,159.11,159.1,12.16667999]
[1730777659844,0.1,159.11,159.09,12.16667999]
[1730777660946,6.3852,159.11,159.09,12.16667999]
[1730777662447,6.3852,159.11,159.07,12.16667999]
[1730777662448,0.1,159.09,159.07,12.16667999]
[1730777662657,0.2,159.09,159.07,12.16667999]
[1730777662951,0.57647,159.09,159.08,12.16667999]
[1730777663751,6.76217,159.09,159.08,12.16667999]
[1730777665253,0.1,159.11,159.08,12.16667999]
[1730777665455,6.2852,159.11,159.1,12.16667999]
[1730777665751,6.3852,159.11,159.1,12.16667999]
[1730777666060,6.2852,159.11,159.1,12.16667999]
[1730777666361,6.2841,159.13,159.1,12.16667999]
[1730777666545,6.484,159.14,159.12,12.16667999]
[1730777666742,0.2,159.15,159.13,12.16667999]
[1730777667054,6.593208,159.16,159.14,12.16667999]
[1730777667235,6.593208,159.16,159.15,12.16667999]
[1730777668131,6.693208,159.16,159.15,12.16667999]
[1730777668860,6.593208,159.16,159.15,12.16667999]
[1730777669444,0.310208,159.16,159.15,12.16667999]
[1730777673662,0.1,159.11,159.08,28.74497999]
[1730777673860,0.1,159.11,159.07,12.16667999]
[1730777673861,0.1,159.1,159.07,12.16667999]
[1730777674177,0.1,159.09,159.07,12.16667999]
[1730777675172,6.63658,159.1,159.07,12.16667999]
[1730777675956,6.63658,159.1,159.08,12.16667999]
[1730777676561,6.53658,159.1,159.08,12.16667999]
[1730777676780,0.1,159.09,159.08,12.16667999]
[1730777676983,6.3857,159.09,159.08,12.16667999]
[1730777677480,0.25098,159.1,159.08,12.16667999]
[1730777678177,6.2857,159.09,159.08,12.16667999]
[1730777678754,6.3857,159.09,159.08,12.16667999]
[1730777681073,6.2857,159.09,159.08,12.16667999]
[1730777681279,0.25098,159.1,159.08,12.16667999]
[1730777681280,6.3854,159.1,159.08,12.16667999]
[1730777681483,6.3854,159.1,159.09,12.16667999]
[1730777683373,6.285,159.11,159.09,12.16667999]
[1730777684589,6.3846,159.12,159.1,12.16667999]
[1730777684772,6.2846,159.12,159.11,12.16667999]
[1730777685980,82.86662646,159.15,159.11,12.16667999]
[1730777685981,12.94832646,159.15,159.11,12.16667999]
[1730777686186,12.94832646,159.15,159.14,12.16667999]
[1730777686385,6.3834,159.15,159.14,12.16667999]
[1730777686970,6.2834,159.15,159.14,12.16667999]
[1730777687200,6.3834,159.15,159.14,12.16667999]
[1730777689994,6.2834,159.15,159.14,12.16667999]
[1730777690487,15.806,159.18,159.14,12.16667999]
[1730777690488,6.2822,159.18,159.14,12.16667999]
[1730777690673,6.281,159.21,159.17,12.16667999]
[1730777690873,6.381,159.21,159.2,12.16667999]
[1730777691178,6.481,159.21,159.2,12.16667999]
[1730777691698,6.381,159.21,159.2,12.16667999]
[1730777691996,6.40649,159.21,159.2,12.16667999]
[1730777692199,0.25098,159.23,159.2,12.16667999]
[1730777692496,6.2802,159.23,159.22,12.16667999]
[1730777692681,0.310208,159.24,159.22,12.16667999]
[1730777692882,0.310208,159.24,159.23,12.16667999]
[1730777693205,0.310208,159.24,159.18,21.9875]
[1730777693206,0.310208,159.24,159.21,12.16667999]
[1730777693387,0.310208,159.24,159.2,18.96615344]
[1730777693584,0.410208,159.24,159.2,18.96615344]
[1730777693791,0.1,159.23,159.18,18.96615344]
[1730777694298,6.590008,159.24,159.21,18.96615344]
[1730777694480,6.590008,159.24,159.2,18.96615344]
[1730777694676,6.690008,159.24,159.2,18.96615344]
[1730777694882,6.590008,159.24,159.2,18.96615344]
[1730777695082,6.690008,159.24,159.2,18.96615344]
[1730777695385,6.790008,159.24,159.19,18.96615344]
[1730777695593,0.35098,159.23,159.18,18.96615344]
[1730777696594,0.35098,159.23,159.17,15.8983]
[1730777696595,0.1,159.2,159.17,15.8983]
[1730777696987,0.1,159.2,159.16,18.96615344]
[1730777697296,6.2818,159.19,159.16,18.96615344]
[1730777697596,6.2818,159.19,159.14,18.96615344]
[1730777697597,0.1,159.18,159.14,18.96615344]
[1730777697805,0.35098,159.18,159.14,18.96615344]
[1730777699084,6.2825,159.17,159.14,18.96615344]
[1730777700104,6.2825,159.17,159.13,35.38865344]
[1730777700282,0.35098,159.16,159.11,18.96615344]
[1730777700482,19.31713344,159.16,159.11,18.96615344]
[1730777700685,0.35098,159.16,159.11,18.96615344]
[1730777701199,0.35098,159.16,159.12,18.96615344]
[1730777701381,6.2833,159.15,159.12,18.96615344]
[1730777703496,6.2833,159.15,159.11,18.96615344]
[1730777704412,0.35098,159.14,159.11,18.96615344]
[1730777704582,0.35098,159.14,159.1,18.96615344]
[1730777704995,0.35098,159.14,159.11,18.96615344]
[1730777705689,0.2,159.16,159.12,18.96615344]
[1730777705883,6.63388,159.16,159.12,18.96615344]
[1730777706091,6.73388,159.16,159.12,18.96615344]
[1730777708200,6.73388,159.16,159.11,18.96615344]
[1730777710603,0.35098,159.14,159.1,18.96615344]
[1730777710793,19.31713344,159.14,159.09,35.33865344]
[1730777711591,0.45098,159.12,159.07,18.96615344]
[1730777712296,0.45098,159.12,159.08,18.96615344]
[1730777712491,0.45098,159.12,159.07,18.96615344]
[1730777712716,6.2849,159.11,159.07,18.96615344]
[1730777712906,6.3849,159.11,159.07,18.96615344]
[1730777713414,6.3849,159.11,159.07,12.15946684]
[1730777715217,6.2849,159.11,159.08,12.15946684]
[1730777715394,0.25098,159.12,159.1,12.15946684]
[1730777715594,6.53558,159.12,159.1,12.15946684]
[1730777716309,6.73558,159.12,159.09,12.15946684]
[1730777717999,6.53558,159.12,159.09,12.15946684]
[1730777718201,6.2841,159.14,159.11,12.15946684]
[1730777718520,6.2841,159.14,159.12,12.15946684]
[1730777718722,6.2841,159.14,159.11,12.15946684]
[1730777722713,11.9988496,159.16,159.11,12.15946684]
[1730777722914,0.25098,159.15,159.11,12.15946684]
[1730777723530,0.25098,159.15,159.12,12.15946684]
[1730777723727,6.53428,159.15,159.12,12.15946684]
[1730777724435,6.53428,159.15,159.11,12.15946684]
[1730777724807,6.53428,159.15,159.1,12.25946684]
[1730777727246,6.53428,159.15,159.11,12.15946684]
[1730777730043,18.69374684,159.15,159.1,12.15946684]
[1730777731325,18.69374684,159.15,159.1,12.25946684]
[1730777731526,6.53428,159.15,159.1,12.25946684]
[1730777737841,6.53428,159.15,159.1,12.15946684]
[1730777738029,6.53428,159.15,159.11,12.15946684]
[1730777738237,6.2825,159.17,159.13,12.15946684]
[1730777738439,6.2825,159.17,159.14,12.15946684]
[1730777738642,6.2825,159.17,159.13,12.15946684]
[1730777743654,18.44196684,159.17,159.12,0.1]
[1730777744536,18.44196684,159.17,159.11,27.96946684]
[1730777744741,12.41044684,159.16,159.11,27.86946684]
[1730777745660,76.2825,159.17,159.09,12.15946684]
[1730777745661,12.41044684,159.14,159.09,12.15946684]
[1730777746554,12.41044684,159.14,159.08,12.25946684]
[1730777746756,6.2841,159.13,159.08,12.25946684]
[1730777746948,6.2841,159.13,159.08,12.15946684]
[1730777747148,6.2841,159.13,159.08,12.25946684]
[1730777747369,6.2841,159.13,159.09,12.15946684]
[1730777749770,6.2841,159.13,159.08,12.25946684]
[1730777749952,18.44356684,159.13,159.08,12.15946684]
[1730777750575,0.25098,159.12,159.08,12.15946684]
[1730777751094,6.2849,159.11,159.08,12.15946684]
[1730777751858,6.2849,159.11,159.05,12.25946684]
[1730777751859,0.37647,159.1,159.05,12.25946684]
[1730777752078,0.37647,159.1,159.04,12.15946684]
[1730777752079,12.53593684,159.1,159.04,12.15946684]
[1730777752956,0.12549,159.06,159.03,15.7686]
[1730777753681,0.12549,159.06,159.02,12.15946684]
[1730777754053,12.28495684,159.06,159.01,12.15946684]
[1730777754651,12.41044684,159.05,159.0,12.15946684]
[1730777754855,12.28495684,159.04,158.99,28.04876684]
[1730777755082,6.53908,159.03,158.99,28.04876684]
[1730777757275,6.53908,159.03,158.96,0.310208]
[1730777757276,90.37647,158.97,158.96,0.310208]
[1730777757486,126.31282084,158.97,158.96,0.310208]
[1730777757669,20.37647,158.97,158.96,0.310208]
[1730777759085,115.24526461,158.97,158.96,0.310208]
[1730777759273,133.69513145,158.97,158.96,0.310208]
[1730777760272,132.60322084,158.97,158.96,0.310208]
[1730777761576,132.60322084,158.97,158.96,8e-06]
[1730777761788,181.2410882,158.97,158.96,8e-06]
[1730777762097,132.60322084,158.97,158.96,8e-06]
[1730777765284,144.76268784,158.97,158.96,8e-06]
[1730777767570,151.32211082,158.97,158.96,8e-06]
[1730777776574,37.16875682,158.97,158.96,8e-06]
[1730777776900,25.13477998,158.97,158.96,8e-06]
[1730777777094,30.73482384,158.97,158.96,8e-06]
[1730777777793,30.98580384,158.97,158.96,8e-06]
[1730777778681,18.449867,158.97,158.96,8e-06]
[1730777780603,30.60933384,158.97,158.96,8e-06]
[1730777783185,19.54213995,158.97,158.96,8e-06]
[1730777784223,18.449867,158.97,158.96,8e-06]
[1730777787002,30.60933384,158.97,158.96,8e-06]
[1730777789180,18.44986684,158.97,158.96,8e-06]
[1730777794908,6.2904,158.97,158.96,8e-06]
[1730777796998,18.44986684,158.97,158.96,8e-06]
[1730777797198,112.60322084,158.97,158.96,8e-06]
[1730777798134,132.60322084,158.97,158.96,8e-06]
[1730777799842,187.77508736,158.97,158.96,8e-06]
[1730777800921,0.12549,158.93,158.88,0.310208]
[1730777801106,12.15946684,158.89,158.88,0.310208]
[1730777801614,12.15946684,158.9,158.88,0.310208]
[1730777801815,48.63786736,158.96,158.9,0.1]
[1730777801816,12.15946684,158.94,158.9,0.1]
[1730777802125,12.15946684,158.96,158.91,12.25946684]
[1730777803510,18.45026684,158.96,158.91,12.25946684]
[1730777804635,18.45026684,158.96,158.92,0.1]
[1730777805727,18.45026684,158.96,158.93,0.1]
[1730777805728,6.2908,158.96,158.93,0.1]
[1730777805928,6.2908,158.96,158.94,0.1]
[1730777806515,6.2904,158.97,158.94,0.1]
[1730777809726,12.15946684,158.98,158.94,0.1]
[1730777810818,6.2904,158.97,158.94,0.1]
[1730777813346,6.2904,158.97,158.95,0.1]
[1730777815443,12.28495684,158.99,158.95,0.1]
[1730777815643,6.29,158.98,158.95,0.1]
[1730777816643,12.15946684,158.99,158.95,0.1]
[1730777816938,6.2897,158.99,158.96,0.1]
[1730777819816,12.15946684,158.99,158.96,0.1]
[1730777821023,18.44876684,159.0,158.96,0.1]
[1730777821237,6.2893,159.0,158.98,0.1]
[1730777821545,6.289,159.01,158.98,27.62086684]
[1730777821931,6.2886,159.02,158.99,0.1]
[1730777822238,6.2879,159.04,159.02,0.1]
[1730777822447,14.79242558,159.07,159.03,12.15946684]
[1730777822652,14.79242558,159.07,159.06,12.25946684]
[1730777822847,6.2853,159.1,159.06,12.25946684]
[1730777823629,12.15946684,159.11,159.07,0.1]
[1730777823828,12.15946684,159.09,159.07,0.1]
[1730777824552,12.15946684,159.1,159.07,0.1]
[1730777824929,12.41044684,159.11,159.07,0.1]
[1730777825137,6.2853,159.1,159.07,0.1]
[1730777825341,18.44396684,159.12,159.07,12.35946684]
[1730777825557,12.15946684,159.11,159.07,0.1]
[1730777826050,12.15946684,159.09,159.05,16.1719]
[1730777826263,12.15946684,159.1,159.06,0.2]
[1730777826452,12.15946684,159.1,159.05,16.1719]
[1730777826655,12.15946684,159.1,159.06,0.1]
[1730777826874,12.15946684,159.09,159.06,0.1]
[1730777827169,6.2861,159.08,159.06,0.1]
[1730777827378,18.44556684,159.08,159.06,0.1]
[1730777827742,6.2861,159.08,159.06,0.1]
[1730777831952,6.2845,159.12,159.08,0.1]
[1730777832365,12.15946684,159.11,159.07,0.2]
[1730777832672,12.15946684,159.1,159.07,0.1]
[1730777832854,6.2845,159.12,159.08,12.25946684]
[1730777833061,25.0120384,159.14,159.11,0.1]
[1730777833452,12.85257156,159.14,159.11,0.1]
[1730777833680,12.85257156,159.14,159.11,0.2]
[1730777834177,12.15946684,159.15,159.11,0.2]
[1730777834178,18.44286684,159.15,159.11,0.2]
[1730777834887,6.2834,159.15,159.12,16.1614]
[1730777836189,0.310208,159.16,159.13,0.2]
[1730777836484,6.593208,159.16,159.13,0.1]
[1730777836873,18.75267484,159.16,159.13,0.1]
[1730777839085,12.15946684,159.14,159.12,16.1614]
[1730777839388,12.15946684,159.14,159.12,0.1]
[1730777841174,12.15946684,159.15,159.12,0.1]
[1730777841374,18.44276684,159.15,159.12,0.1]
[1730777845179,18.44276684,159.15,159.11,0.1]
[1730777845180,12.15946684,159.14,159.11,0.1]
[1730777845383,12.15946684,159.14,159.1,0.1]
[1730777845596,12.15946684,159.14,159.12,0.1]
[1730777846505,18.44276684,159.15,159.12,0.2]
[1730777846685,6.2833,159.15,159.12,0.2]
[1730777846876,6.2833,159.15,159.12,0.1]
[1730777847193,6.2833,159.15,159.12,0.2]
[1730777847392,6.593208,159.16,159.12,6.4845]
[1730777847586,0.310208,159.16,159.13,12.25946684]
[1730777847902,0.310208,159.16,159.15,0.2]
[1730777848194,0.310208,159.16,159.15,0.1]
[1730777848399,0.310208,159.16,159.14,0.1]
[1730777848400,18.75267484,159.16,159.14,0.1]
[1730777848570,12.15946684,159.15,159.12,0.1]
[1730777848778,12.15946684,159.14,159.11,0.1]
[1730777848978,12.15946684,159.14,159.12,0.1]
[1730777850801,6.2841,159.14,159.12,0.1]
[1730777851372,6.2841,159.14,159.1,0.1]
[1730777851576,18.44356684,159.14,159.1,0.1]
[1730777851882,12.15946684,159.13,159.11,0.1]
[1730777852797,18.44356684,159.14,159.11,0.1]
[1730777856486,12.15946684,159.13,159.09,16.6893]
[1730777856689,12.15946684,159.13,159.1,0.1]
[1730777857304,12.15946684,159.13,159.09,16.6893]
[1730777857517,12.15946684,159.12,159.1,0.1]
[1730777857880,12.15946684,159.12,159.09,16.6893]
[1730777858090,12.15946684,159.12,159.1,0.1]
[1730777858592,18.44396684,159.12,159.1,0.1]
[1730777859184,18.44396684,159.12,159.09,16.6893]
[1730777859388,18.44396684,159.12,159.08,0.1]
[1730777859591,18.44396684,159.12,159.09,0.1]
[1730777859993,18.44396684,159.12,159.1,0.1]
[1730777860513,18.44356684,159.14,159.1,0.1]
[1730777860710,6.2841,159.14,159.1,12.35946684]
[1730777861097,6.2841,159.14,159.1,0.1]
[1730777861310,18.44356684,159.14,159.1,0.1]
[1730777863802,18.44356684,159.14,159.1,0.2]
[1730777866110,18.44356684,159.14,159.1,0.1]
[1730777866615,18.44356684,159.14,159.08,18.54546684]
[1730777866616,6.2841,159.14,159.11,0.2]
[1730777868023,12.15946684,159.14,159.11,0.2]
[1730777869408,18.44276684,159.15,159.11,0.2]
[1730777871605,12.28495684,159.14,159.11,0.1]
[1730777873136,6.2841,159.13,159.11,0.1]
[1730777875827,0.25098,159.04,158.99,12.25946684]
[1730777876139,12.15946684,159.03,159.0,0.1]
[1730777876465,12.15946684,159.01,158.96,0.1]
[1730777876611,12.15946684,159.01,158.95,27.40526684]
[1730777876612,12.15946684,159.01,158.99,0.1]
[1730777876811,12.15946684,159.01,158.96,0.1]
[1730777877012,12.15946684,159.01,158.95,27.40526684]
[1730777877013,12.15946684,159.01,158.98,0.1]
[1730777877224,12.15946684,159.0,158.95,15.2458]
[1730777877423,12.15946684,158.99,158.97,0.1]
[1730777877736,12.53593684,159.0,158.97,0.1]
[1730777877940,6.2897,158.99,158.97,0.1]
[1730777878326,0.12549,159.01,158.97,0.2]
[1730777878922,0.25098,159.01,158.97,0.2]
[1730777880342,12.15946684,158.99,158.97,0.2]
[1730777880641,12.15946684,158.98,158.95,15.2458]
[1730777880840,12.15946684,158.99,158.97,0.1]
[1730777881946,6.29,158.98,158.97,0.1]
[1730777884431,6.2897,158.99,158.97,0.2]
[1730777885048,94.31893384,159.03,158.99,0.2]
[1730777885222,6.2885,159.02,158.99,0.2]
[1730777885425,18.44796684,159.02,158.99,0.2]
[1730777886245,18.44796684,159.02,158.99,0.1]
[1730777886441,12.15946684,159.01,158.98,0.1]
[1730777886650,12.15946684,159.0,158.96,0.2]
[1730777886859,12.15946684,159.0,158.97,0.1]
[1730777887332,0.12549,159.01,158.96,0.1]
[1730777887333,12.15946684,158.99,158.96,0.1]
[1730777887536,12.15946684,158.99,158.95,15.2458]
[1730777887734,12.15946684,158.99,158.97,0.1]
[1730777888453,18.44876684,159.0,158.97,0.2]
[1730777888662,18.44876684,159.0,158.97,0.1]
[1730777889369,18.44876684,159.0,158.96,0.1]
[1730777890360,18.44876684,159.0,158.97,0.1]
[1730777890654,18.44876684,159.0,158.96,0.1]
[1730777891144,18.44876684,159.0,158.97,0.1]
[1730777891458,18.44876684,159.0,158.97,0.2]
[1730777891634,15.1458,158.99,158.97,0.2]
[1730777893382,15.1458,158.99,158.96,0.1]
[1730777893540,6.29,158.98,158.96,0.1]
[1730777893739,6.29,158.98,158.97,0.1]
[1730777894045,6.29,158.98,158.97,0.2]
[1730777896066,6.2894,159.0,158.99,0.1]
[1730777896362,6.2894,159.0,158.99,0.2]
[1730777897472,6.2889,159.01,158.99,0.1]
[1730777897961,6.2889,159.01,158.99,0.2]
[1730777898354,6.2889,159.01,158.99,0.1]
[1730777899251,12.15946684,159.01,158.98,0.1]
[1730777899451,18.44796684,159.02,158.99,0.2]
[1730777899663,18.44796684,159.02,158.99,0.1]
[1730777899865,18.44796684,159.02,158.99,0.2]
[1730777901541,6.2885,159.02,158.99,0.2]
[1730777901858,6.2885,159.02,159.01,0.1]
[1730777902841,6.2881,159.03,159.01,0.1]
[1730777904151,18.44756684,159.03,159.0,0.2]
[1730777904547,18.44756684,159.03,159.01,0.1]
[1730777906770,12.159467,159.04,159.03,0.1]
[1730777906976,6.2861,159.08,159.06,0.1]
[1730777907270,6.2861,159.08,159.07,0.1]
[1730777907967,6.2861,159.08,159.07,0.2]
[1730777908152,6.2861,159.08,159.07,0.1]
[1730777908477,6.2861,159.08,159.07,0.2]
[1730777910874,6.2861,159.08,159.07,0.1]
[1730777911591,18.44556684,159.08,159.07,0.1]
[1730777911882,18.44556684,159.08,159.05,0.1]
[1730777912093,12.15946684,159.06,159.02,15.5946]
[1730777912258,12.15946684,159.04,159.02,0.1]
[1730777912460,12.15946684,159.04,159.03,0.1]
[1730777912885,12.15946684,159.04,159.0,0.2]
[1730777913087,12.15946684,159.04,159.01,0.1]
[1730777913285,12.15946684,159.03,159.02,0.1]
[1730777913683,18.57265684,159.04,159.0,0.2]
[1730777913862,18.57265684,159.04,159.02,0.1]
[1730777914490,12.15946684,159.03,159.02,0.1]
[1730777915767,18.44716684,159.04,159.02,0.1]
[1730777916081,18.44716684,159.04,159.03,0.1]
[1730777917403,18.44716684,159.04,159.0,0.2]
[1730777917689,70.0,159.06,159.0,0.1]
[1730777917690,6.2885,159.02,159.0,0.1]
[1730777917899,18.44796684,159.02,158.99,0.1]
[1730777918087,12.15946684,159.01,158.99,0.1]
[1730777918294,12.15946684,159.01,159.0,0.1]
[1730777918477,18.44796684,159.02,159.0,0.1]
[1730777918676,6.2885,159.02,159.0,0.1]
[1730777918911,6.2885,159.02,159.01,0.1]
[1730777919680,12.15946684,159.04,159.02,0.1]
[1730777919868,6.2877,159.04,159.03,0.1]
[1730777920792,6.2869,159.06,159.05,0.2]
[1730777920994,6.2869,159.06,159.05,12.35946684]
[1730777921496,6.2857,159.09,159.06,0.2]
[1730777921695,6.2857,159.09,159.07,0.1]
[1730777923494,6.2857,159.09,159.06,19.20285456]
[1730777923697,6.2857,159.09,159.06,19.10285456]
[1730777923900,6.2857,159.09,159.06,0.2]
[1730777924101,6.2857,159.09,159.07,0.1]
[1730777924400,26.66177,159.1,159.07,19.10285456]
[1730777924899,26.66177,159.1,159.07,0.1]
[1730777925194,26.2853,159.1,159.07,19.20285456]
[1730777925498,6.2853,159.1,159.09,19.20285456]
[1730777925680,21.7504,159.14,159.09,19.20285456]
[1730777925879,6.2841,159.13,159.11,0.2]
[1730777926101,6.2837,159.15,159.13,0.1]
[1730777926306,6.2837,159.15,159.13,19.20285456]
[1730777927104,6.2837,159.15,159.14,0.1]
[1730777927899,6.2837,159.15,159.14,19.20285456]
[1730777929784,6.2837,159.15,159.14,0.2]
[1730777931610,6.2837,159.15,159.14,19.20285456]
[1730777934418,6.2837,159.15,159.14,0.2]
[1730777935109,6.2837,159.15,159.14,0.1]
[1730777935314,6.2837,159.15,159.13,0.1]